bitfinex/quotes_SOLUSD_20260309
["timestamp","ask_amount","ask_price","bid_price","bid_amount"]
[1773066956224,4.20643721,85.17,85.14,11.37441047]
[1773066956427,4.20643721,85.17,85.131,4.30268756]
[1773066956428,15.58084768,85.17,85.131,4.30268756]
[1773066956934,4.20643721,85.168,85.14,11.37441047]
[1773066957143,4.20643721,85.168,85.132,11.74646431]
[1773066957144,4.20643721,85.179,85.15,11.37441047]
[1773066958230,15.94511458,85.189,85.15,11.37441047]
[1773066958431,11.73867737,85.189,85.15,11.37441047]
[1773066958615,4.20643721,85.179,85.14,11.37441047]
[1773066958819,4.20643721,85.169,85.133,0.28432314]
[1773066959039,15.94791912,85.169,85.134,11.74618836]
[1773066959235,4.20643721,85.168,85.134,11.74618836]
[1773066959943,4.20643721,85.168,85.134,41.11165926]
[1773066960148,4.20643721,85.168,85.134,11.74618836]
[1773066960542,4.20643721,85.188,85.16,11.37441047]
[1773066960846,7.26122256,85.199,85.18,11.37441047]
[1773066961043,7.26122256,85.199,85.181,11.73970721]
[1773066961425,7.26122256,85.199,85.176,11.74032413]
[1773066961625,7.26122256,85.199,85.18,11.37441047]
[1773066962039,15.78084768,85.21,85.177,4.30268756]
[1773066962040,0.2,85.21,85.177,4.30268756]
[1773066962344,46.92341453,85.246,85.176,11.74032413]
[1773066962345,4.20643721,85.223,85.19,11.37441047]
[1773066962524,15.93815625,85.239,85.201,4.30268756]
[1773066962724,11.57441047,85.24,85.21,15.67709803]
[1773066962725,0.2,85.24,85.21,15.67709803]
[1773066963335,0.2,85.24,85.22,11.37441047]
[1773066963644,4.65526552,85.24,85.211,11.73557404]
[1773066964017,0.2,85.24,85.22,11.37441047]
[1773066964223,11.73171904,85.239,85.211,11.73557404]
[1773066964426,0.2,85.24,85.22,11.37441047]
[1773066964722,4.45526552,85.238,85.204,11.73645971]
[1773066964920,4.45526552,85.238,85.21,11.37441047]
[1773066965340,4.45526552,85.238,85.211,11.73557404]
[1773066965634,4.45526552,85.239,85.2,11.37441047]
[1773066965819,4.45526552,85.238,85.201,4.2150443]
[1773066966219,4.45526552,85.238,85.2,11.37441047]
[1773066966418,4.45526552,85.238,85.189,4.2150443]
[1773066966419,4.45526552,85.229,85.193,11.73793138]
[1773066966834,4.45526552,85.229,85.19,11.37441047]
[1773066966835,11.37441047,85.22,85.181,12.02403035]
[1773066967034,4.45526552,85.219,85.181,12.02403035]
[1773066967249,4.45526552,85.199,85.154,29.35835417]
[1773066967428,4.45526552,85.197,85.161,0.28432314]
[1773066967942,11.73673741,85.203,85.17,11.37441047]
[1773066968127,16.19134906,85.208,85.17,11.37441047]
[1773066968325,11.37441047,85.2,85.163,4.2150443]
[1773066968640,4.45526552,85.189,85.156,11.74315374]
[1773066969126,11.37441047,85.2,85.161,4.2150443]
[1773066969326,15.82967599,85.2,85.163,4.2150443]
[1773066969646,11.37441047,85.2,85.17,11.37441047]
[1773066969825,4.45526552,85.21,85.18,11.37441047]
[1773066970519,4.45526552,85.199,85.162,11.74232638]
[1773066971342,4.45526552,85.199,85.164,4.2150443]
[1773066971545,4.45526552,85.197,85.16,11.37441047]
[1773066971724,4.45526552,85.189,85.155,11.74329164]
[1773066971924,4.45526552,85.18,85.151,0.14216157]
[1773066972142,4.45526552,85.18,85.151,0.28432314]
[1773066972440,4.45526552,85.179,85.147,4.2150443]
[1773066972738,4.45526552,85.169,85.14,11.37441047]
[1773066972987,41.08077653,85.198,85.135,11.74605039]
[1773066972988,4.45526552,85.189,85.151,4.2150443]
[1773066973134,4.45526552,85.179,85.15,11.37441047]
[1773066973457,4.45526552,85.179,85.143,4.2150443]
[1773066973657,4.45526552,85.179,85.15,11.37441047]
[1773066974227,16.19538052,85.179,85.144,41.10683077]
[1773066974426,16.19538052,85.179,85.144,11.74480879]
[1773066974628,11.740115,85.179,85.144,11.74480879]
[1773066974829,4.45526552,85.169,85.137,11.74576096]
[1773066975029,4.45526552,85.169,85.13,11.37441047]
[1773066975330,11.37441047,85.17,85.14,15.58945477]
[1773066975538,11.74136129,85.169,85.141,11.74522263]
[1773066975938,11.37441047,85.16,85.131,11.74660229]
[1773066976641,4.45526552,85.159,85.126,11.74721663]
[1773066976852,4.45526552,85.168,85.113,4.2150443]
[1773066977152,15.82967599,85.17,85.133,4.2150443]
[1773066977354,4.45526552,85.169,85.133,4.2150443]
[1773066977668,4.45526552,85.169,85.111,4.82477569]
[1773066977669,4.45526552,85.158,85.131,11.74660229]
[1773066978238,4.45526552,85.158,85.123,11.74770626]
[1773066978537,4.45526552,85.149,85.114,11.74893444]
[1773066979160,4.45526552,85.139,85.104,11.750329]
[1773066979359,11.37441047,85.14,85.111,4.2150443]
[1773066979535,4.45526552,85.149,85.111,4.2150443]
[1773066979736,11.74355079,85.154,85.121,4.2150443]
[1773066979932,4.45526552,85.157,85.121,4.2150443]
[1773066980157,11.37441047,85.14,85.103,4.2150443]
[1773066980535,4.45526552,85.145,85.111,4.2150443]
[1773066980738,4.45526552,85.156,85.12,15.58945477]
[1773066981234,11.37441047,85.17,85.131,4.2150443]
[1773066981439,15.82967599,85.17,85.14,11.37441047]
[1773066981851,4.45526552,85.198,85.151,4.2150443]
[1773066982159,4.45526552,85.189,85.16,11.37441047]
[1773066982334,4.45526552,85.179,85.142,0.28432314]
[1773066982733,4.45526552,85.179,85.15,11.37441047]
[1773066983168,4.45526552,85.179,85.141,11.74522263]
[1773066983339,4.45526552,85.169,85.141,11.74522263]
[1773066983739,15.82967599,85.18,85.143,16.24431417]
[1773066983937,27.56824828,85.19,85.16,11.37441047]
[1773066984353,23.11298276,85.19,85.16,11.37441047]
[1773066984558,4.45526552,85.219,85.162,4.2150443]
[1773066984759,11.69803587,85.212,85.181,4.2150443]
[1773066984942,7.24277035,85.212,85.19,11.37441047]
[1773066985653,1e-08,85.212,85.2,11.37441047]
[1773066986854,1e-08,85.212,85.201,11.73695144]
[1773066988267,11.37441048,85.24,85.22,11.37441047]
[1773066988268,1e-08,85.24,85.22,11.37441047]
[1773066988470,1e-08,85.24,85.214,4.2150443]
[1773066988641,1e-08,85.24,85.22,11.37441047]
[1773066988843,1e-08,85.24,85.221,11.73419697]
[1773066989148,4.45526552,85.239,85.203,15.95172023]
[1773066989349,4.45526552,85.239,85.21,11.37441047]
[1773066990658,4.45526552,85.239,85.211,11.73557404]
[1773066990838,4.45526552,85.239,85.194,4.49936744]
[1773066990839,4.45526552,85.237,85.206,11.73623679]
[1773066991237,4.45526552,85.261,85.221,4.2150443]
[1773066991468,1e-08,85.26,85.25,11.37441047]
[1773066991640,1e-08,85.26,85.24,11.37441047]
[1773066992161,1e-08,85.26,85.25,11.37441047]
[1773066992557,1e-08,85.26,85.24,11.37441047]
[1773066992959,4.45526552,85.259,85.219,4.2150443]
[1773066993142,1e-08,85.26,85.24,11.37441047]
[1773066993474,0.2,85.27,85.25,11.37441047]
[1773066994042,0.2,85.27,85.241,4.32780355]
[1773066994242,4.20206765,85.269,85.24,11.37441047]
[1773066994552,0.2,85.27,85.25,11.37441047]
[1773066995070,11.92333699,85.3,85.252,4.82477569]
[1773066995362,11.92333699,85.3,85.27,11.37441047]
[1773066995363,4.20206765,85.299,85.27,11.37441047]
[1773066995562,4.20206765,85.289,85.26,11.37441047]
[1773066995764,4.40206765,85.3,85.27,11.37441047]
[1773066995970,4.20206765,85.31,85.28,11.37441047]
[1773066996261,4.20206765,85.308,85.28,11.37441047]
[1773066996444,4.20206765,85.318,85.28,11.37441047]
[1773066996647,4.20206765,85.318,85.29,11.37441047]
[1773066997061,4.20206765,85.318,85.291,11.72456648]
[1773066997263,0.1,85.33,85.3,11.37441047]
[1773066997470,0.1,85.34,85.32,11.37441047]
[1773066997657,0.1,85.35,85.32,11.37441047]
[1773066997658,4.20206765,85.384,85.333,4.32780355]
[1773066997857,46.81379041,85.445,85.36,11.37441047]
[1773066997858,4.20206765,85.395,85.36,11.37441047]
[1773066998060,4.20206765,85.395,85.353,4.32780355]
[1773066998260,4.20206765,85.379,85.341,0.28432314]
[1773066998451,4.20206765,85.405,85.354,4.32780355]
[1773066998768,2.20795464,85.406,85.382,4.32780355]
[1773066998968,11.70138076,85.46,85.401,45.31093021]
[1773066999269,7.25258622,85.48,85.401,11.70946476]
[1773066999270,11.37441047,85.43,85.401,11.70946476]
[1773066999764,0.14216157,85.433,85.371,11.71357955]
[1773066999960,11.70049144,85.467,85.345,3.69383402]
[1773066999961,11.37441047,85.39,85.353,12.00037295]
[1773067000158,11.37441047,85.37,85.344,36.19761026]
[1773067000361,4.82477569,85.431,85.29,46.89862715]
[1773067000362,11.37441047,85.34,85.298,11.7236043]
[1773067000571,11.37441047,85.33,85.298,41.03261506]
[1773067000875,4.20206765,85.376,85.311,4.32780355]
[1773067001168,11.37441047,85.35,85.324,4.32780355]
[1773067001366,11.37441047,85.35,85.323,11.72016923]
[1773067001367,11.37441047,85.37,85.331,4.32780355]
[1773067001666,4.20206765,85.377,85.34,11.37441047]
[1773067001982,11.37441047,85.39,85.351,4.32780355]
[1773067002264,15.57647812,85.38,85.341,0.28432314]
[1773067002640,11.37441047,85.39,85.351,4.61212669]
[1773067002840,11.71015035,85.396,85.37,11.37441047]
[1773067003064,11.70651306,85.423,85.381,4.32780355]
[1773067003249,11.37441047,85.41,85.381,4.32780355]
[1773067003449,11.37441047,85.41,85.371,11.71357955]
[1773067003754,11.37441047,85.4,85.367,4.32780355]
[1773067003948,4.20206765,85.409,85.37,11.37441047]
[1773067004165,11.37441047,85.39,85.367,4.32780355]
[1773067004467,4.20206765,85.389,85.344,4.32780355]
[1773067004668,4.35107425,85.369,85.334,4.11594061]
[1773067004972,4.35107425,85.369,85.321,4.82477569]
[1773067004973,11.37441047,85.36,85.321,4.11594061]
[1773067005144,11.37441047,85.36,85.323,4.11594061]
[1773067005346,4.35107425,85.349,85.311,11.72181781]
[1773067005656,11.37441047,85.35,85.313,0.28432314]
[1773067005859,11.37441047,85.38,85.341,4.11594061]
[1773067006057,11.71248199,85.379,85.341,4.11594061]
[1773067007241,11.71248199,85.379,85.342,11.71755993]
[1773067007644,11.29746328,85.36,85.326,11.71973145]
[1773067007849,11.29746328,85.35,85.326,11.71973145]
[1773067008448,11.29746328,85.35,85.32,11.29746328]
[1773067008449,11.29746328,85.34,85.317,4.11594061]
[1773067008775,11.29746328,85.34,85.311,0.14216157]
[1773067008947,11.29746328,85.37,85.331,4.11594061]
[1773067009145,11.29746328,85.35,85.321,15.83638458]
[1773067009352,11.29746328,85.35,85.31,11.29746328]
[1773067009353,15.64853753,85.34,85.299,4.11594061]
[1773067009675,4.35107425,85.309,85.271,11.72731643]
[1773067009877,11.29746328,85.3,85.271,11.72731643]
[1773067010376,287.02304379,85.359,85.247,15.84651181]
[1773067010377,11.29746328,85.28,85.247,15.84651181]
[1773067010870,4.35107425,85.269,85.235,4.11594061]
[1773067011059,4.35107425,85.269,85.236,11.73213196]
[1773067011455,11.29746328,85.27,85.237,4.11594061]
[1773067011674,23.02224591,85.29,85.25,15.41340389]
[1773067011853,11.29746328,85.28,85.25,4.11594061]
[1773067012346,11.29746328,85.28,85.242,0.28432314]
[1773067012547,11.29746328,85.27,85.238,4.11594061]
[1773067012771,15.64853753,85.26,85.231,11.73282021]
[1773067012958,11.72478263,85.29,85.21,11.29746328]
[1773067012959,11.29746328,85.25,85.21,11.29746328]
[1773067013161,4.35107425,85.229,85.191,15.85426977]
[1773067013351,4.35107425,85.229,85.192,0.14216157]
[1773067013551,11.29746328,85.21,85.18,4.11594061]
[1773067013758,11.29746328,85.21,85.172,11.74094772]
[1773067013960,15.64853753,85.21,85.172,11.74094772]
[1773067014180,15.64853753,85.21,85.171,4.11594061]
[1773067014181,4.35107425,85.21,85.171,4.11594061]
[1773067014394,4.35107425,85.21,85.17,15.41340389]
[1773067014395,4.35107425,85.209,85.17,15.41340389]
[1773067014877,4.35107425,85.209,85.171,4.11594061]
[1773067015071,4.35107425,85.209,85.16,41.09904201]
[1773067015072,11.29746328,85.21,85.18,11.29746328]
[1773067015279,3.69383402,85.241,85.19,11.29746328]
[1773067015280,11.29746328,85.23,85.19,11.29746328]
[1773067015477,4.35107425,85.229,85.19,11.29746328]
[1773067015787,11.29746328,85.21,85.181,11.73970721]
[1773067015977,4.35107425,85.219,85.182,4.11594061]
[1773067016166,4.35107425,85.219,85.181,11.73970721]
[1773067016167,11.29746328,85.23,85.191,4.11594061]
[1773067016371,11.29746328,85.22,85.191,4.11594061]
[1773067016685,11.29746328,85.21,85.181,11.73970721]
[1773067016868,4.35107425,85.219,85.181,11.73970721]
[1773067017070,4.35107425,85.219,85.183,0.28432314]
[1773067017269,3.69383402,85.251,85.164,0.28432314]
[1773067017270,11.29746328,85.21,85.184,11.73929376]
[1773067017469,11.29746328,85.22,85.19,11.29746328]
[1773067018067,11.29746328,85.2,85.156,4.11594061]
[1773067018266,4.35107425,85.189,85.157,11.74301584]
[1773067018665,11.29746328,85.19,85.157,15.85895645]
[1773067018882,11.29746328,85.18,85.144,4.11594061]
[1773067019084,11.29746328,85.18,85.146,4.11594061]
[1773067019270,3.69383402,85.211,85.133,4.11594061]
[1773067019271,11.29746328,85.17,85.133,4.11594061]
[1773067019466,11.29746328,85.18,85.151,4.11594061]
[1773067019890,11.29746328,85.18,85.134,41.3959824]
[1773067019891,11.29746328,85.17,85.141,0.28432314]
[1773067020077,4.35107425,85.179,85.141,0.28432314]
[1773067020272,4.35107425,85.179,85.14,11.29746328]
[1773067020473,4.35107425,85.179,84.92,0.1]
[1773067020474,11.29746328,85.15,85.116,11.7486724]
[1773067020778,4.35107425,85.169,85.131,4.11594061]
[1773067021081,4.35107425,85.169,85.133,4.11594061]
[1773067021389,11.29746328,85.16,85.134,11.74618836]
[1773067021580,11.29746328,85.16,85.121,11.74798228]
[1773067021581,4.35107425,85.159,85.121,11.74798228]
[1773067021987,4.35107425,85.179,85.14,11.29746328]
[1773067022181,11.29746328,85.17,85.14,11.29746328]
[1773067022685,4.35107425,85.169,85.14,11.29746328]
[1773067022890,11.29746328,85.18,85.141,4.11594061]
[1773067023081,4.35107425,85.169,85.132,4.40026375]
[1773067023280,4.12857199,85.159,85.122,0.14216157]
[1773067023470,4.12857199,85.149,85.108,4.16023454]
[1773067023676,3.69383402,85.181,85.091,41.13243468]
[1773067023677,11.29746328,85.16,85.121,4.16023454]
[1773067023878,23.04006544,85.16,85.121,4.16023454]
[1773067024084,11.29746328,85.15,85.11,11.58178642]
[1773067024269,4.12857199,85.159,85.121,4.16023454]
[1773067024472,11.29746328,85.14,85.109,4.16023454]
[1773067024694,11.29746328,85.15,85.121,4.16023454]
[1773067024894,4.12857199,85.203,85.141,3.90020927]
[1773067025076,11.29746328,85.2,85.154,0.14216157]
[1773067025402,4.12857199,85.189,85.15,11.29746328]
[1773067025780,4.12857199,85.189,85.16,11.29746328]
[1773067026598,4.12857199,85.189,85.15,11.29746328]
[1773067026797,4.12857199,85.179,85.15,11.29746328]
[1773067027174,4.12857199,85.179,85.138,41.10972773]
[1773067027376,0.28432314,85.205,85.141,11.74522263]
[1773067027377,4.12857199,85.169,85.141,11.74522263]
[1773067027587,4.12857199,85.169,85.131,0.28432314]
[1773067028582,11.29746328,85.16,85.13,11.29746328]
[1773067028802,4.12857199,85.159,85.129,11.74687826]
[1773067029013,4.12857199,85.149,85.129,11.74687826]
[1773067029310,4.12857199,85.203,85.14,22.59492656]
[1773067029479,4.12857199,85.219,85.18,11.29746328]
[1773067029679,4.12857199,85.189,85.151,0.28432314]
[1773067029885,4.12857199,85.189,85.15,11.29746328]
[1773067031084,11.29746328,85.2,85.16,11.29746328]
[1773067031291,4.12857199,85.189,85.143,11.74494673]
[1773067031498,4.12857199,85.177,85.143,11.74494673]
[1773067032109,11.29746328,85.16,85.138,11.74553926]
[1773067032300,4.12857199,85.169,85.138,11.74553926]
[1773067032504,4.12857199,85.179,85.15,11.29746328]
[1773067032689,4.12857199,85.179,85.138,41.1096305]
[1773067032690,4.12857199,85.179,85.14,11.29746328]
[1773067032885,4.12857199,85.203,85.139,3.90020927]
[1773067033126,4.12857199,85.203,85.138,11.74553926]
[1773067033127,4.12857199,85.229,85.19,11.29746328]
[1773067033339,4.12857199,85.227,85.19,11.29746328]
[1773067033542,11.29746328,85.2,85.171,11.74108558]
[1773067033740,4.12857199,85.199,85.171,11.74108558]
[1773067034147,11.29746328,85.22,85.181,4.16023454]
[1773067034450,11.29746328,85.21,85.171,11.74108558]
[1773067035137,11.29746328,85.21,85.171,41.09379953]
[1773067035827,11.29746328,85.22,85.191,4.16023454]
[1773067036026,11.29746328,85.22,85.18,11.29746328]
[1773067036335,4.12857199,85.199,85.165,11.74187582]
[1773067037031,11.29746328,85.2,85.166,4.30239611]
[1773067037241,4.12857199,85.209,85.18,11.29746328]
[1773067037447,4.12857199,85.219,85.181,4.16023454]
[1773067037960,4.12857199,85.28,85.212,0.28432314]
[1773067038170,4.12857199,85.279,85.24,11.29746328]
[1773067038372,4.12857199,85.279,85.25,11.29746328]
[1773067038660,11.29746328,85.32,85.213,3.69383402]
[1773067038661,4.12857199,85.292,85.26,11.29746328]
[1773067038952,11.72290497,85.304,85.25,11.29746328]
[1773067038953,4.12857199,85.289,85.25,11.29746328]
[1773067039337,4.12857199,85.289,85.24,4.44455768]
[1773067039338,15.42603527,85.28,85.24,15.74202096]
[1773067039542,4.12857199,85.279,85.24,11.29746328]
[1773067039955,4.12857199,85.279,85.25,11.29746328]
[1773067040273,11.29746328,85.29,85.25,11.29746328]
[1773067040569,4.12857199,85.303,85.261,4.16023454]
[1773067040767,4.12857199,85.299,85.27,11.29746328]
[1773067041155,4.12857199,85.319,85.28,11.29746328]
[1773067042060,4.12857199,85.309,85.27,11.29746328]
[1773067042251,4.12857199,85.309,85.273,11.72704138]
[1773067042455,4.12857199,85.318,85.273,11.72704138]
[1773067042652,4.12857199,85.318,85.29,2.02544716]
[1773067043253,4.12857199,85.333,85.3,11.29746328]
[1773067043472,23.0153611,85.34,85.3,11.29746328]
[1773067043770,11.29746328,85.33,85.291,4.44455768]
[1773067044073,11.29746328,85.34,85.301,4.16023454]
[1773067044281,11.29746328,85.34,85.302,11.72305455]
[1773067044662,4.12857199,85.345,85.302,41.03069094]
[1773067044860,11.29746328,85.34,85.302,41.03069094]
[1773067045386,11.29746328,85.32,85.28,11.29746328]
[1773067045555,11.29746328,85.32,85.281,4.16023454]
[1773067045753,4.12857199,85.319,85.281,4.16023454]
[1773067046274,0.28432314,85.349,85.277,11.72639397]
[1773067046275,11.29746328,85.31,85.277,11.72639397]
[1773067046479,4.12857199,85.309,85.277,11.72639397]
[1773067046771,11.29746328,85.31,85.277,45.2028568]
[1773067046978,11.29746328,85.31,85.281,4.16023454]
[1773067047174,18.96933504,85.332,85.281,4.16023454]
[1773067047358,11.29746328,85.31,85.281,4.16023454]
[1773067047678,4.12857199,85.319,85.281,4.16023454]
[1773067047858,11.29746328,85.31,85.281,4.16023454]
[1773067048067,48.26666781,85.332,85.27,11.58178642]
[1773067048068,11.29746328,85.3,85.272,11.72714425]
[1773067048372,4.12857199,85.309,85.272,11.72714425]
[1773067048556,4.12857199,85.309,85.272,15.88737879]
[1773067048757,4.12857199,85.309,85.273,4.16023454]
[1773067048953,11.29746328,85.3,85.272,11.72714425]
[1773067049660,11.29746328,85.29,85.262,11.7284508]
[1773067050212,11.72484142,85.289,85.262,11.7284508]
[1773067050476,11.72484142,85.289,85.251,11.73006768]
[1773067050477,11.29746328,85.28,85.251,11.73006768]
[1773067050876,4.12857199,85.288,85.251,11.73006768]
[1773067051180,11.29746328,85.31,85.27,11.29746328]
[1773067051473,11.29746328,85.29,85.261,4.16023454]
[1773067051974,11.29746328,85.27,85.241,11.73144378]
[1773067052177,11.29746328,85.27,85.237,4.16023454]
[1773067052368,11.7275915,85.269,85.238,11.73185668]
[1773067052759,11.7275915,85.269,85.225,11.14346479]
[1773067052760,11.29746328,85.25,85.225,11.14346479]
[1773067052956,11.29746328,85.25,85.225,22.87697364]
[1773067053783,11.29746328,85.25,85.225,22.8770938]
[1773067054160,11.29746328,85.24,85.225,11.14346479]
[1773067054360,11.73171904,85.239,85.225,11.14346479]
[1773067054670,4.24512792,85.249,85.215,41.07252022]
[1773067054877,11.29746328,85.24,85.215,11.73496228]
[1773067055076,4.24512792,85.286,85.218,4.41277915]
[1773067055281,11.29746328,85.26,85.221,4.41277915]
[1773067055786,11.29746328,85.25,85.221,4.41277915]
[1773067056082,11.29746328,85.24,85.21,16.14838628]
[1773067056279,11.29746328,85.23,85.199,11.73722696]
[1773067056479,11.73220822,85.236,85.2,11.29746328]
[1773067056680,4.24512792,85.239,85.201,4.41277915]
[1773067056865,11.73185668,85.238,85.201,4.41277915]
[1773067057062,11.29746328,85.23,85.201,4.41277915]
[1773067057267,11.73185668,85.238,85.201,4.41277915]
[1773067057562,11.29746328,85.23,85.201,4.41277915]
[1773067057769,4.24512792,85.239,85.201,4.41277915]
[1773067058171,11.29746328,85.23,85.201,4.41277915]
[1773067058387,11.29746328,85.23,85.202,11.73681368]
[1773067058682,4.24512792,85.239,85.203,4.41277915]
[1773067059084,11.29746328,85.25,85.211,4.41277915]
[1773067059302,11.29746328,85.26,85.23,11.29746328]
[1773067059487,11.29746328,85.26,85.221,4.41277915]
[1773067060084,11.29746328,85.26,85.22,11.29746328]
[1773067060085,11.29746328,85.25,85.211,4.41277915]
[1773067060284,11.29746328,85.26,85.231,4.41277915]
[1773067060489,11.29746328,85.26,85.232,11.73268256]
[1773067061374,11.7263538,85.278,85.241,4.41277915]
[1773067061574,11.29746328,85.3,85.261,4.41277915]
[1773067061780,15.5425912,85.3,85.261,4.41277915]
[1773067061974,11.29746328,85.29,85.261,4.41277915]
[1773067062492,11.29746328,85.31,85.27,15.71024243]
[1773067062786,4.24512792,85.309,85.27,15.71024243]
[1773067062995,4.24512792,85.345,85.3,11.29746328]
[1773067063174,4.24512792,85.345,85.301,4.41277915]
[1773067063175,4.24512792,85.339,85.301,4.41277915]
[1773067063374,15.5425912,85.35,85.311,4.41277915]
[1773067064086,11.29746328,85.36,85.32,11.29746328]
[1773067064291,11.29746328,85.36,85.32,15.71024243]
[1773067064591,4.24512792,85.361,85.321,11.72044397]
[1773067064592,11.29746328,85.35,85.321,11.72044397]
[1773067064993,4.24512792,85.359,85.321,11.72044397]
[1773067065188,4.24512792,85.359,85.322,4.41277915]
[1773067065894,4.24512792,85.359,85.33,11.29746328]
[1773067066093,15.5425912,85.37,85.331,4.41277915]
[1773067066301,4.24512792,85.359,85.321,41.02155389]
[1773067066595,4.24512792,85.359,85.324,4.41277915]
[1773067067097,4.24512792,85.373,85.34,11.29746328]
[1773067067392,4.33255705,85.383,85.341,4.06611807]
[1773067067598,4.33255705,85.383,85.35,11.29746328]
[1773067067793,4.33255705,85.383,85.35,15.36358135]
[1773067067987,11.29746328,85.39,85.35,15.36358135]
[1773067067988,11.29746328,85.39,85.351,4.06611807]
[1773067068192,11.7111611,85.389,85.351,4.06611807]
[1773067068388,4.33255705,85.394,85.36,11.29746328]
[1773067068695,11.71056175,85.393,85.361,11.71495179]
[1773067068887,11.29746328,85.39,85.361,11.71495179]
[1773067069276,11.29746328,85.4,85.362,4.06611807]
[1773067069493,4.33255705,85.399,85.362,4.06611807]
[1773067069698,4.33255705,85.389,85.361,11.71495179]
[1773067070079,4.33255705,85.369,85.33,11.29197813]
[1773067070683,11.29197813,85.37,85.341,4.06611807]
[1773067070983,11.71248199,85.379,85.341,4.06611807]
[1773067071191,11.29197813,85.37,85.341,4.06611807]
[1773067071478,11.29197813,85.37,85.331,41.30106968]
[1773067071479,4.33255705,85.369,85.333,4.06611807]
[1773067072606,4.33255705,85.359,85.313,4.06611807]
[1773067072894,11.29197813,85.38,85.311,4.06611807]
[1773067072895,4.33255705,85.349,85.311,4.06611807]
[1773067073096,11.71536352,85.358,85.321,4.06611807]
[1773067073306,11.29197813,85.35,85.321,4.06611807]
[1773067073682,16.04792057,85.358,85.321,4.06611807]
[1773067073683,4.33255705,85.358,85.321,4.06611807]
[1773067073892,11.71522627,85.359,85.321,4.06611807]
[1773067074080,11.29197813,85.36,85.321,4.06611807]
[1773067074280,11.71522627,85.359,85.321,4.06611807]
[1773067074502,4.33255705,85.349,85.31,15.3580962]
[1773067074798,11.29197813,85.34,85.311,11.72181781]
[1773067074987,15.62453518,85.34,85.311,11.72181781]
[1773067075992,4.33255705,85.339,85.311,11.72181781]
[1773067076384,11.71666715,85.349,85.312,4.06611807]
[1773067076703,4.33255705,85.329,85.293,4.06611807]
[1773067077001,4.33255705,85.329,85.297,0.28432314]
[1773067077188,11.29197813,85.31,85.287,11.72501939]
[1773067077689,4.33255705,85.309,85.27,44.67650605]
[1773067077891,11.29197813,85.3,85.274,11.7267992]
[1773067078201,4.33255705,85.309,85.274,11.7267992]
[1773067078704,11.29197813,85.3,85.274,11.7267992]
[1773067080401,11.29197813,85.31,85.275,4.06611807]
[1773067080705,4.33255705,85.309,85.275,4.06611807]
[1773067080883,4.33255705,85.309,85.276,11.72662882]
[1773067081079,4.33255705,85.309,85.277,4.06611807]
[1773067081280,4.33255705,85.318,85.281,4.06611807]
[1773067081485,11.29197813,85.3,85.276,11.72662882]
[1773067081702,11.29197813,85.29,85.271,11.72722526]
[1773067081908,11.29197813,85.28,85.245,29.32705823]
[1773067082085,41.02251549,85.319,85.242,4.06611807]
[1773067082086,4.33255705,85.291,85.242,4.06611807]
[1773067082287,11.29197813,85.28,85.247,4.06611807]
[1773067082586,4.33255705,85.302,85.261,4.06611807]
[1773067082890,11.29197813,85.3,85.263,4.06611807]
[1773067083095,11.29197813,85.29,85.263,4.06611807]
[1773067083600,4.33255705,85.299,85.263,4.06611807]
[1773067083788,11.29197813,85.29,85.263,4.06611807]
[1773067083986,11.29197813,85.31,85.271,4.43942295]
[1773067084410,4.14558016,85.299,85.262,41.04994017]
[1773067084699,4.14558016,85.299,85.263,4.43942295]
[1773067084906,11.29197813,85.29,85.264,11.72827922]
[1773067085109,4.14558016,85.289,85.253,4.43942295]
[1773067085315,4.14558016,85.289,85.254,11.72965491]
[1773067085485,11.29197813,85.27,85.242,11.73130616]
[1773067085686,11.29197813,85.25,85.22,11.73421293]
[1773067085892,4.78124469,85.23,85.209,4.43942295]
[1773067086091,11.29197813,85.28,85.225,4.43942295]
[1773067086286,11.72484142,85.289,85.25,11.29197813]
[1773067086494,11.29197813,85.28,85.244,4.43942295]
[1773067086701,0.16262806,85.258,85.24,11.29197813]
[1773067086894,11.29197813,85.28,85.241,41.06005325]
[1773067087299,11.29197813,85.29,85.251,4.43942295]
[1773067087496,29.30821363,85.301,85.251,4.43942295]
[1773067087708,4.14558016,85.289,85.251,4.43942295]
[1773067088096,15.43755829,85.3,85.261,4.43942295]
[1773067088401,11.72223003,85.308,85.251,4.43942295]
[1773067088402,4.14558016,85.289,85.251,4.43942295]
[1773067089089,4.14558016,85.287,85.252,11.72993008]
[1773067089609,11.7242611,85.294,85.26,11.29197813]
[1773067090133,4.14558016,85.295,85.26,15.73140108]
[1773067090494,11.29197813,85.29,85.252,41.0547553]
[1773067090797,4.14558016,85.308,85.27,11.29197813]
[1773067091006,4.14558016,85.308,85.272,41.04512617]
[1773067091401,4.14558016,85.308,85.28,11.29197813]
[1773067091719,4.14558016,85.308,85.273,4.43942295]
[1773067092009,11.72170056,85.312,85.272,41.04512617]
[1773067092010,4.14558016,85.329,85.29,11.29197813]
[1773067092211,4.14558016,85.329,85.3,11.29197813]
[1773067092395,4.14558016,85.329,85.29,11.29197813]
[1773067093112,4.14558016,85.328,85.291,11.72456648]
[1773067093493,4.14558016,85.319,85.291,11.72456648]
[1773067095194,4.14558016,85.319,85.29,11.29197813]
[1773067095600,4.14558016,85.319,85.285,4.43942295]